[Event "FRA-ch Teams Top 16-Haute 2022"]
[Site "Chartres"]
[Date "2022.06.17"]
[Round "9.32"]
[White "Martsynovskaya, Marina"]
[Black "Benmesbah, Natacha"]
[Result "1/2-1/2"]
[ECO "B33"]
[WhiteElo "2070"]
[BlackElo "2251"]
[Annotator "TA"]
[PlyCount "210"]
[EventDate "2022.06.16"]
[EventType "team-tourn"]
[EventCountry "FRA"]
[SourceTitle "playchess.com"]
[Source "ChessBase"]
[SourceQuality "1"]
[TimeControl "40/5400+30:1800+30"]

{[%evp 15,210,40,54,51,41,45,50,39,33,39,92,99,93,91,85,85,108,109,108,105,112,111,158,155,130,66,57,63,66,59,85,90,85,85,96,85,95,0,0,0,0,-99,-85,-85,-85,-379,-366,-347,-317,-407,-412,-412,-403,-403,-396,-367,-168,-356,-349,-381,-396,-385,-385,-370,-364,-320,-266,-227,-91,-91,-91,-91,-60,-60,-60,-60,-60,-60,-60,-60,-60,-60,-60,-60,-60,-60,-60,-60,-60,-60,-60,-60,-60,-60,-60,-60,-60,-60,-60,-60,-60,-60,-60,-60,-60,-60,-60,-60,-60,-60,-60,-60,-60,-60,-60,-60,-60,-60,-49,-49,-49,-49,-49,-49,-49,-49,-15,-49,-15,-15,0,-15,0,0,0,0,0,0,0,0,0,0,0,0,0,-7,-8,-15,-15,-15,-15,-15,-15,-15,-15,-15,-15,-15,-15,-15,-15,-15,-14,-15,-15,-15,-15,-15,0,-15,-15,-15,-15,-15,-15,-15,-15,-15,-15,-15,-15,-15,-15,-15,-15,-15,-15,-15,-15,-15,0,-15,0,-15,0,-18,0]} 1. e4 {[%emt 0:00:07]} c5 {[%emt 0:00:39]} 2. Nf3 {[%emt 0:00:13]} Nc6 {[%emt 0:00:03]} 3. d4 {[%emt 0:00:26]} cxd4 {[%emt 0:00:05]} 4. Nxd4 {[%emt 0:00:16]} Nf6 {[%emt 0:00:03]} 5. Nc3 {[%emt 0:00:08]} e5 {[%emt 0:00:03]} 6. Ndb5 {[%emt 0:00:15]} d6 {[%emt 0:00:12]} 7. Bg5 {[%emt 0:01:03]} a6 {[%emt 0:00:04]} 8. Na3 {[%emt 0:00:11]} Be6 {[%emt 0:00:15]} 9. Nc4 {[%emt 0:00:46] B33: Sicilian: Pelikan and Sveshnikov Variations.} Rb8 {[%emt 0:00:15]} 10. g3 {[%emt 0:00:22]} h5 {[%emt 0:05:49]} 11. h4 {[%emt 0:21:04] White is slightly better.} Nd4 {[%emt 0:05:00]} 12. Ne3 {[%emt 0:02:50] [#]} Be7 $146 {[%emt 0:01:21]} (12... Qb6 $14 13. Rb1 Qd8) ({Predecessor:} 12... Qb6 13. Rb1 Ng4 14. Ned5 Qc5 15. b4 Qc8 16. Bd3 Nh2 17. Rxh2 Bg4 18. Be2 Bxe2 19. Nxe2 {0-1 (32) Lane,G (2353)-Cornette,M (2597) London 2018}) 13. Bxf6 $16 {[%emt 0:01:17]} Bxf6 {[%emt 0:00:04]} 14. Ncd5 {[%emt 0:00:41]} g6 {[%emt 0:04:30]} 15. c3 {[%emt 0:00:47]} Nc6 {[%emt 0:00:07]} 16. Nxf6+ {[%emt 0:04:59]} Qxf6 {[%emt 0:00:03]} 17. Qxd6 {[%emt 0:00:08] And now Nd5 would win.} Rd8 {[%emt 0:00:13]} 18. Qc5 {[%emt 0:00:18][%cal Of1a6]} Ne7 {[%emt 0:02:19]} (18... Qe7 $142 19. Qxe7+ Kxe7) 19. Bg2 {[%emt 0:07:18]} O-O {[%emt 0:00:23]} 20. Nd5 {[%emt 0:05:22]} (20. O-O $16) 20... Bxd5 $14 {[%emt 0:03:44]} 21. exd5 {[%emt 0:00:07]} b6 {[%emt 0:05:09]} 22. Qa3 {[%emt 0:05:06]} Nxd5 {[%emt 0:01:32]} 23. Qxa6 {[%emt 0:02:14]} e4 {[%emt 0:01:35][%cal Od5c3]} 24. O-O {[%emt 0:02:57]} e3 {[%emt 0:01:08]} 25. Rae1 {[%emt 0:06:59]} Qe5 {[%emt 0:13:00]} 26. Bxd5 {[%emt 0:18:06]} (26. Qc4 $16) 26... exf2+ $11 {[%emt 0:00:15]} 27. Kxf2 {[%emt 0:00:04]} Qxd5 {[%emt 0:00:05]} 28. a3 {[%emt 0:01:35]} (28. Kg1 $11) 28... Qf5+ {[%emt 0:05:54][%mdl 1024] Black has strong compensation.} 29. Kg1 {[%emt 0:04:19] [#]} Qh3 {[%emt 0:00:16]} 30. Re3 $2 {[%emt 0:03:11][%mdl 8192]} (30. Qe2 $17) 30... Rd2 $19 {[%emt 0:01:09][%csl Gh3][%cal Rd2g2]} 31. Rf2 {[%emt 0:00:15] Prevents Rg2+.} Rfd8 {[%emt 0:03:05]} 32. Rxd2 {[%emt 0:04:26]} Rxd2 {[%emt 0:00:06][%csl Gd2][%cal Rh3g2][%mdl 4096] Endgame KQR-KQR} 33. Qa8+ {[%emt 0:00:16]} Kg7 {[%emt 0:00:10]} 34. Qf3 {[%emt 0:00:16]} Rxb2 {[%emt 0:01:03] ( -> ...Rb1+)} 35. Re1 {[%emt 0:01:43] Against Rb1} Qh2+ {[%emt 0:00:51]} 36. Kf1 {[%emt 0:00:06]} Rb5 {[%emt 0:00:35] Strongly threatening ...Rf5.} 37. Re2 {[%emt 0:03:19]} Qh3+ {[%emt 0:07:17]} 38. Ke1 {[%emt 0:01:12]} Rb1+ {[%emt 0:00:31]} 39. Kd2 {[%emt 0:00:06]} Qd7+ {[%emt 0:00:10]} 40. Ke3 {[%emt 0:03:08]} Rb5 {[%emt 0:05:52]} 41. Qe4 {[%emt 0:03:23] [#] Prevents Re5.} Rd5 {[%emt 0:03:10] Inhibits Qd4+.} (41... Qh3 $1 $19 {[%cal Rh3g3] and Black stays clearly on top.} 42. Kd2 Qxg3) 42. Kf2 $17 {[%emt 0:02:32]} Kh7 {[%emt 0:01:16]} 43. Kg2 {[%emt 0:00:44]} Rf5 {[%emt 0:00:50]} 44. c4 {[%emt 0:07:24]} Qd6 {[%emt 0:02:11]} 45. Qe3 {[%emt 0:04:01]} Qc6+ {[%emt 0:01:46]} 46. Qe4 {[%emt 0:00:07]} Qa4 {[%emt 0:02:24]} 47. Qd3 {[%emt 0:01:36]} Qa8+ {[%emt 0:00:39]} 48. Kg1 {[%emt 0:01:35]} Qf3 {[%emt 0:11:30] Against Rf2} (48... b5 {keeps more tension.} 49. cxb5 Rf3 50. Qd6 Rxa3 51. Qe5 Rb3) 49. Qxf3 {[%emt 0:06:24]} Rxf3 $15 {[%emt 0:00:04] KR-KR} 50. Kg2 {[%emt 0:00:05]} Rxa3 {[%emt 0:00:21]} 51. Re7 {[%emt 0:00:11]} Kg7 {[%emt 0:02:06]} 52. Rb7 {[%emt 0:00:19]} Ra6 {[%emt 0:02:36]} 53. Rc7 {[%emt 0:00:23]} Ra2+ {[%emt 0:11:26]} 54. Kh3 {[%emt 0:00:35]} Rf2 {[%emt 0:04:04]} 55. Rc6 {[%emt 0:01:17]} Rf6 {[%emt 0:00:24]} 56. Rc7 {[%emt 0:00:06]} Re6 {[%emt 0:02:57]} 57. c5 {[%emt 0:01:07]} bxc5 {[%emt 0:00:24]} 58. Rxc5 {[%emt 0:00:05]} Re2 {[%emt 0:01:02]} 59. Rb5 {[%emt 0:00:46]} Kf6 {[%emt 0:00:28]} 60. Ra5 {[%emt 0:00:11]} Re5 {[%emt 0:00:17]} 61. Ra7 {[%emt 0:00:23]} Ke6 {[%emt 0:01:37]} 62. Rb7 {[%emt 0:00:25]} Rf5 {[%emt 0:00:14]} 63. Kg2 {[%emt 0:00:40]} Rd5 {[%emt 0:02:19]} 64. Ra7 {[%emt 0:00:26]} Rd2+ {[%emt 0:00:40]} 65. Kf3 {[%emt 0:00:40]} Rd3+ {[%emt 0:00:51]} 66. Kf4 {[%emt 0:01:02]} f6 {[%emt 0:01:26]} 67. Ra6+ {[%emt 0:00:57]} Rd6 {[%emt 0:00:05]} 68. Ra5 {[%emt 0:00:40]} Rb6 {[%emt 0:00:12]} 69. Rc5 {[%emt 0:00:50]} Rb4+ {[%emt 0:01:08]} 70. Kf3 {[%emt 0:00:07]} Rg4 {[%emt 0:00:17]} 71. Ra5 {[%emt 0:00:11]} f5 {[%emt 0:04:42]} 72. Ra6+ {[%emt 0:04:28] The position is equal.} Ke5 {[%emt 0:01:06]} 73. Ra5+ {[%emt 0:00:07]} Kd4 {[%emt 0:00:28]} 74. Ra4+ {[%emt 0:00:11]} Kd3 {[%emt 0:00:04]} 75. Ra3+ {[%emt 0:00:04]} Kc2 {[%emt 0:00:34]} 76. Ra2+ {[%emt 0:00:05]} Kb3 {[%emt 0:00:04]} (76... Kb1 $5 {[%cal Rb1a2]} 77. Rd2 Re4 $11) 77. Ra6 {[%emt 0:00:07]} Kb4 {[%emt 0:00:26]} 78. Rb6+ {[%emt 0:00:29]} Kc5 {[%emt 0:00:09]} 79. Ra6 $1 {[%emt 0:00:08]} Kd5 {[%emt 0:00:55]} 80. Rb6 {[%emt 0:00:25]} Ke5 {[%emt 0:00:33]} 81. Rb5+ {[%emt 0:01:50]} Ke6 {[%emt 0:00:15]} 82. Rb6+ {[%emt 0:00:08]} Kf7 {[%emt 0:00:07]} 83. Rb7+ {[%emt 0:00:04]} Kf6 {[%emt 0:00:22]} 84. Rb6+ {[%emt 0:00:08]} Kg7 {[%emt 0:00:02]} 85. Rb7+ {[%emt 0:00:09]} Kh6 {[%emt 0:00:07]} 86. Rb6 {[%emt 0:00:08]} Rd4 {[%emt 0:01:21]} 87. Ra6 {[%emt 0:00:14]} Rd3+ {[%emt 0:00:27]} 88. Kf4 {[%emt 0:00:56]} Rd1 {[%emt 0:00:44]} 89. Kf3 {[%emt 0:01:44]} Rf1+ {[%emt 0:00:49]} 90. Ke2 {[%emt 0:00:25]} Rg1 {[%emt 0:01:11]} 91. Kf2 {[%emt 0:00:07]} Rd1 {[%emt 0:00:04]} 92. Kf3 {[%emt 0:00:24]} Rd4 {[%emt 0:00:06]} 93. Rb6 {[%emt 0:00:08]} Re4 {[%emt 0:00:26]} 94. Ra6 {[%emt 0:00:09]} Kg7 {[%emt 0:00:05]} 95. Rb6 {[%emt 0:00:18]} Kf7 {[%emt 0:00:04]} 96. Ra6 {[%emt 0:00:18]} Re6 {[%emt 0:00:07]} 97. Ra5 {[%emt 0:02:30]} Kf6 {[%emt 0:00:05]} 98. Kf4 {[%emt 0:00:12]} Rc6 {[%emt 0:02:36]} 99. Rb5 {[%emt 0:00:10]} Rd6 {[%emt 0:04:58]} 100. Ra5 {[%emt 0:00:14]} Rd4+ {[%emt 0:01:26]} 101. Kf3 {[%emt 0:00:06]} Rd3+ {[%emt 0:00:26]} 102. Kf4 {[%emt 0:00:26]} Rd4+ {[%emt 0:00:03]} 103. Kf3 {[%emt 0:00:07]} Rd3+ {[%emt 0:00:02]} 104. Kf4 {[%emt 0:00:10]} Rd4+ {[%emt 0:00:02]} 105. Kf3 {[%emt 0:00:05]} Rd3+ {[%emt 0:00:15] Quite a comeback for White.  Weighted Error Value: White=0.21 (precise) /Black=0.08 (flawless)} 1/2-1/2

[Event "FRA-ch Teams Top 16-Haute 2022"]
[Site "Chartres"]
[Date "2022.06.19"]
[Round "11.1"]
[White "Philippe, Christophe"]
[Black "Parligras, Mircea-Emilian"]
[Result "0-1"]
[ECO "D05"]
[WhiteElo "2379"]
[BlackElo "2583"]
[Annotator "TA"]
[PlyCount "76"]
[EventDate "2022.06.16"]
[EventType "team-tourn"]
[EventCountry "FRA"]
[SourceTitle "playchess.com"]
[Source "ChessBase"]
[SourceQuality "1"]
[TimeControl "40/5400+30:1800+30"]

{[%evp 18,76,22,0,0,-16,-7,0,0,-54,-40,-73,-72,-97,-98,-111,-116,-133,-122,-125,-93,-176,-176,-273,-266,-326,-321,-319,-316,-325,-312,-313,-215,-223,-194,-196,-217,-199,-212,-268,-262,-262,-255,-245,-242,-256,-240,-225,-200,-312,-200,-493,-486,-477,-471,-447,-379,-541,-525,-505,-444]} 1. d4 {[%emt 0:00:06]} Nf6 {[%emt 0:00:08]} 2. Nf3 {[%emt 0:00:13]} e6 {[%emt 0:00:58]} 3. e3 {[%emt 0:00:28]} c5 {[%emt 0:00:24]} 4. Bd3 {[%emt 0:00:11]} d5 {[%emt 0:00:16]} 5. O-O {[%emt 0:00:54]} b6 {[%emt 0:05:38]} 6. b3 {[%emt 0:00:56]} Bb7 {[%emt 0:00:19]} 7. Bb2 {[%emt 0:00:23]} Nc6 {[%emt 0:00:37]} 8. a3 {[%emt 0:02:04]} Be7 {[%emt 0:00:15]} 9. Nbd2 {[%emt 0:00:21]} O-O {[%emt 0:00:36]} 10. Qe2 {[%emt 0:01:38]} a5 {[%emt 0:03:22] D05: Colle System with ...e6.} 11. Ne5 {[%emt 0:10:53]} Qc7 {[%emt 0:07:55]} 12. f4 {[%emt 0:03:09]} a4 {[%emt 0:00:34] The position is equal.} 13. Rf3 {[%emt 0:14:19]} (13. Rac1 $11) 13... Nxe5 $15 {[%emt 0:07:55] [#]} 14. dxe5 $146 {[%emt 0:04:39]} ({Predecessor:} 14. fxe5 Ne4 15. Rh3 h6 16. Rf1 axb3 17. cxb3 cxd4 18. exd4 Bxa3 19. Bxa3 Rxa3 20. Bxe4 dxe4 21. Nxe4 Bxe4 22. Qxe4 {½-½ (39) Grube,F (2047)-Helemae,H (2155) ICCF email 2009}) 14... Ne4 {[%emt 0:00:18]} 15. Rh3 {[%emt 0:01:04] [#] And now Nxe4 would win.} g6 $1 {[%emt 0:02:01]} 16. Nxe4 {[%emt 0:09:14]} dxe4 {[%emt 0:00:07]} 17. Bc4 {[%emt 0:00:08]} axb3 {[%emt 0:02:01]} 18. cxb3 {[%emt 0:00:20][%cal Of4f5]} Rad8 {[%emt 0:03:45]} 19. Rf1 {[%emt 0:03:14] [#]} (19. Qc2 $17 {is a better defense.}) 19... Bd5 $1 $19 {[%emt 0:09:32]} 20. f5 {[%emt 0:15:03]} (20. Qc2 $142) 20... Bxc4 {[%emt 0:04:19]} (20... exf5 $2 21. Rxf5 Bxc4 22. bxc4 $19) 21. Qxc4 {[%emt 0:10:03] Hoping for f6.} exf5 {[%emt 0:00:29]} (21... gxf5 22. Qe2 f6 23. Qh5 $18) 22. g4 {[%emt 0:06:39]} fxg4 {[%emt 0:07:26]} 23. Rg3 {[%emt 0:06:34]} Rd3 {[%emt 0:09:03]} ({But not} 23... Rd2 $2 24. Bc1 Rd3 25. Rxg4 $19) 24. Rxg4 {[%emt 0:03:01]} Rxe3 {[%emt 0:01:37] aiming for ...Qd7.} 25. Rxe4 {[%emt 0:04:00]} Rxe4 {[%emt 0:00:53]} 26. Qxe4 {[%emt 0:00:02]} Qd7 {[%emt 0:00:23]} 27. a4 {[%emt 0:01:12]} Qe6 {[%emt 0:01:38]} 28. Rf3 {[%emt 0:01:51]} Rd8 {[%emt 0:00:53]} 29. Rd3 {[%emt 0:01:18]} Rxd3 {[%emt 0:01:57]} 30. Qxd3 {[%emt 0:00:01][%mdl 4096] Endgame KQB-KQB} Bg5 {[%emt 0:01:28]} 31. h3 {[%emt 0:00:34]} Kf8 {[%emt 0:08:27]} 32. Kf2 {[%emt 0:00:11]} Ke7 {[%emt 0:04:23]} 33. Ke2 {[%emt 0:00:02]} (33. Qf3 {was necessary.}) 33... Qc6 {[%emt 0:00:57] ...Qg2+ is the strong threat.} 34. Qf3 {[%emt 0:00:30] Against Qg2+} (34. Bc3) 34... Qxf3+ {[%emt 0:02:31]} ({Worse is} 34... Qd7 35. Bc1 Bh4 36. Bh6 $17) 35. Kxf3 {[%emt 0:00:01]} Ke6 {[%emt 0:00:11]} 36. Ke4 {[%emt 0:00:07]} Bd8 {[%emt 0:00:59] Strongly threatening ...Bc7.} 37. Bc3 {[%emt 0:01:13]} (37. Bc1 $142 Bc7 38. Bg5) 37... Bc7 {[%emt 0:00:09]} 38. Bb2 {[%emt 0:00:25] [#]} Bxe5 $1 {[%emt 0:00:23][%mdl 512] Black took control after the opening.  Weighted Error Value: White=0.39/Black=0.14 (very precise)} 0-1

[Event "FRA-ch Teams Top 16-Haute 2022"]
[Site "Chartres"]
[Date "2022.06.19"]
[Round "11.2"]
[White "Abasov, Nijat"]
[Black "Hamitevici, Vladimir"]
[Result "1/2-1/2"]
[ECO "B90"]
[WhiteElo "2635"]
[BlackElo "2482"]
[Annotator "TA"]
[PlyCount "63"]
[EventDate "2022.06.16"]
[EventType "team-tourn"]
[EventCountry "FRA"]
[SourceTitle "playchess.com"]
[Source "ChessBase"]
[SourceQuality "1"]
[TimeControl "40/5400+30:1800+30"]

{[%evp 13,63,20,31,0,4,0,-2,-25,0,4,12,0,34,38,31,29,46,33,34,41,41,48,35,35,40,39,40,40,38,38,63,57,60,60,56,56,60,62,163,149,164,159,143,101,101,101,101,101,101,86,143,143]} 1. e4 {[%emt 0:00:02]} c5 {[%emt 0:03:40]} 2. Nf3 {[%emt 0:00:20]} d6 {[%emt 0:00:36]} 3. d4 {[%emt 0:00:23]} cxd4 {[%emt 0:00:08]} 4. Nxd4 {[%emt 0:01:35]} Nf6 {[%emt 0:00:08]} 5. Nc3 {[%emt 0:00:07]} a6 {[%emt 0:00:04]} 6. Be3 {[%emt 0:03:01]} e5 {[%emt 0:00:24]} 7. Nb3 {[%emt 0:00:16]} Be6 {[%emt 0:00:38]} 8. h3 {[%emt 0:01:15] B90: Sicilian Najdorf: Unusual White 6th moves, 6 Be3 Ng4 and 6 Be3 e5.} Nbd7 {[%emt 0:04:21]} 9. Qd2 {[%emt 0:07:19]} b5 {[%emt 0:05:39]} 10. O-O-O {[%emt 0:00:56] The position is equal.} Nb6 {[%emt 0:12:09]} 11. f4 {[%emt 0:26:55] [#] Strongly threatening fxe5.} b4 {[%emt 0:08:33] [#]} 12. Nd5 $146 {[%emt 0:00:30]} ({Predecessor:} 12. fxe5 bxc3 13. Qxc3 Nfd7 14. exd6 Rc8 15. Bxb6 Nxb6 16. Qa5 Nd7 17. Qa4 g6 18. Kb1 {0-1 (32) Kuipers,S (2432)-Zubritskiy,A (2320) Pardubice 2013}) 12... Nxe4 {[%emt 0:15:03]} 13. Bxb6 {[%emt 0:05:08]} Nxd2 {[%emt 0:00:06]} 14. Bxd8 {[%emt 0:00:08]} Nxb3+ {[%emt 0:00:06]} 15. axb3 {[%emt 0:01:18]} Bxd5 {[%emt 0:00:10]} 16. Rxd5 {[%emt 0:00:33]} Kxd8 {[%emt 0:01:18]} 17. fxe5 {[%emt 0:00:57]} Kc7 {[%emt 0:00:09]} 18. Be2 {[%emt 0:12:52]} Re8 {[%emt 0:03:58]} 19. Rf1 {[%emt 0:01:45]} f6 $1 {[%emt 0:05:11]} 20. exd6+ {[%emt 0:05:29]} Bxd6 {[%emt 0:00:07]} 21. Bxa6 {[%emt 0:00:09]} Ra8 {[%emt 0:02:34]} 22. Bd3 $36 {[%emt 0:01:08][%mdl 2048] Black is under pressure. White is more active.} Ra1+ {[%emt 0:01:36]} 23. Kd2 {[%emt 0:00:26]} Rxf1 {[%emt 0:00:26]} 24. Bxf1 $14 {[%emt 0:00:04][%mdl 4096] Endgame KRB-KRB} Rd8 {[%emt 0:02:53] And now ...Bf4+ would win.} 25. Kd3 {[%emt 0:05:16]} Be7 {[%emt 0:02:45]} (25... Kc6 $14 26. Kc4 Rc8) 26. Rxd8 $18 {[%emt 0:00:13]} Kxd8 {[%emt 0:00:26] [#] KB-KB} 27. Kc4 $1 {[%emt 0:00:05]} Kd7 {[%emt 0:01:42]} 28. Kd5 {[%emt 0:00:40]} f5 {[%emt 0:08:26]} 29. c4 {[%emt 0:04:29][%cal Bc2c4,Bc4c5][%mdl 32]} Kc7 {[%emt 0:01:32]} 30. c5 {[%emt 0:00:06]} Bg5 {[%emt 0:00:27]} 31. Bd3 {[%emt 0:03:25]} h6 {[%emt 0:00:09]} ({Better is} 31... g6) 32. Bxf5 {[%emt 0:19:40] Weighted Error Value: White=0.05 (flawless) /Black=0.13 (very precise)} 1/2-1/2

[Event "FRA-ch Teams Top 16-Haute 2022"]
[Site "Chartres"]
[Date "2022.06.19"]
[Round "11.4"]
[White "Loiseau, Quentin"]
[Black "Decuigniere, Tom"]
[Result "1/2-1/2"]
[ECO "B12"]
[WhiteElo "2445"]
[BlackElo "2371"]
[Annotator "TA"]
[PlyCount "71"]
[EventDate "2022.06.16"]
[EventType "team-tourn"]
[EventCountry "FRA"]
[SourceTitle "playchess.com"]
[Source "ChessBase"]
[SourceQuality "1"]
[TimeControl "40/5400+30:1800+30"]

{[%evp 12,71,40,27,57,49,46,29,52,35,86,75,97,77,102,65,61,67,68,54,126,96,93,79,112,114,101,106,134,120,119,124,136,129,117,112,97,106,100,0,0,0,15,23,30,23,21,20,19,24,23,11,46,0,0,0,0,0,0,0,0,0]} 1. e4 {[%emt 0:02:19]} c6 {[%emt 0:00:05]} 2. d4 {[%emt 0:00:08]} d5 {[%emt 0:00:05]} 3. e5 {[%emt 0:00:06]} Bf5 {[%emt 0:00:07]} 4. Nf3 {[%emt 0:00:19]} e6 {[%emt 0:00:11]} 5. Be2 {[%emt 0:00:05]} Nd7 {[%emt 0:00:13]} 6. O-O {[%emt 0:00:55]} Bg6 {[%emt 0:00:16]} 7. c3 {[%emt 0:01:17]} Nh6 {[%emt 0:00:26] B12: Caro-Kann: Advance Variation.} 8. a4 {[%emt 0:00:53]} a5 {[%emt 0:02:47]} 9. Na3 {[%emt 0:01:01] [#]} f6 $146 {[%emt 0:06:02] White has an edge.} ({Predecessor:} 9... Be7 10. Nc2 O-O 11. Nce1 c5 12. Bxh6 gxh6 13. Bb5 cxd4 14. cxd4 Nb8 15. Qd2 Kg7 {0-1 (52) Yu,Y (2764)-Artemiev,V (2709) Caleta 2019}) 10. c4 {[%emt 0:05:42]} Nf7 {[%emt 0:05:00]} (10... Nf5 $14) 11. cxd5 $16 {[%emt 0:01:49]} cxd5 {[%emt 0:00:53][%cal Rf6e5]} 12. Nb5 {[%emt 0:04:07]} Bb4 {[%emt 0:05:28]} 13. Bd2 {[%emt 0:08:58]} O-O {[%emt 0:22:35][%cal Rf6e5]} 14. Bxb4 {[%emt 0:02:52]} axb4 {[%emt 0:00:04]} 15. exf6 {[%emt 0:00:43]} gxf6 {[%emt 0:00:31]} (15... Qxf6 $14 16. Qd2 Qe7) 16. Qd2 {[%emt 0:00:49]} Qe7 {[%emt 0:02:04]} 17. Nh4 {[%emt 0:03:36]} Nb8 {[%emt 0:12:15]} 18. Rfe1 {[%emt 0:03:19] White is more active.} Nc6 {[%emt 0:03:54]} 19. Bg4 {[%emt 0:05:20]} Ng5 {[%emt 0:01:06]} 20. Nxg6 {[%emt 0:02:53]} hxg6 {[%emt 0:00:03] [#]} 21. h4 $1 {[%emt 0:00:05]} Ne4 {[%emt 0:00:36]} 22. Qh6 {[%emt 0:01:00]} f5 {[%emt 0:01:39]} 23. Qxg6+ {[%emt 0:02:57]} Kh8 {[%emt 0:01:17] White must now prevent ...Rf7.} 24. Qh6+ {[%emt 0:00:43]} Kg8 {[%emt 0:00:29] And now ...Rf6 would win.} 25. Qg6+ {[%emt 0:02:27]} ({Better is} 25. Bh5 $16) 25... Kh8 $11 {[%emt 0:00:07] Hoping for ...Rf7.} 26. f3 {[%emt 0:08:28] Chess con chili.} Qxh4 {[%emt 0:01:56]} 27. Qh5+ {[%emt 0:03:32]} Qxh5 {[%emt 0:00:05]} 28. Bxh5 {[%emt 0:00:11]} Nf6 {[%emt 0:02:36] [#] Pair of Knights!} 29. Rxe6 $1 {[%emt 0:01:27] Strongly threatening Bg6.} Kg7 {[%emt 0:02:22] Inhibits Bg6.} ({But not} 29... Nd8 {[#]} 30. Rd6 $1 $16) 30. g4 {[%emt 0:01:19]} fxg4 {[%emt 0:03:03]} 31. fxg4 {[%emt 0:00:54] Nc7 is the strong threat.} ({Much weaker is} 31. Bxg4 Nxg4 32. fxg4 Rf4 $11) 31... Rh8 {[%emt 0:05:28]} 32. Re3 {[%emt 0:07:49]} (32. Nd6 $14 {is superior.} Nxh5 33. Rf1 (33. gxh5 Rxh5 34. Ne8+ Kg8 $11)) 32... Nxh5 {[%emt 0:01:37] The position is equal.} 33. gxh5 {[%emt 0:00:01]} Rxh5 {[%emt 0:00:11]} 34. Rg3+ {[%emt 0:00:06]} Kf6 {[%emt 0:03:49]} 35. Nc7 {[%emt 0:04:20]} Rd8 {[%emt 0:00:55]} 36. Rd1 {[%emt 0:06:01] Weighted Error Value: White=0.11 (very precise) /Black=0.11 (very precise)} 1/2-1/2

[Event "FRA-ch Teams Top 16-Haute 2022"]
[Site "Chartres"]
[Date "2022.06.19"]
[Round "11.5"]
[White "Brunner, Nicolas"]
[Black "Nanu, Costica-Ciprian"]
[Result "1/2-1/2"]
[WhiteElo "2454"]
[BlackElo "2520"]
[Annotator "TA"]
[PlyCount "19"]
[EventDate "2022.06.16"]
[EventType "team-tourn"]
[EventCountry "FRA"]
[SourceTitle "playchess.com"]
[Source "ChessBase"]
[SourceQuality "1"]
[TimeControl "40/5400+30:1800+30"]

{[%evp 16,19,8,0,33,0]} 1. d4 {[%emt 0:00:02]} d5 {[%emt 0:00:44]} 2. c4 {[%emt 0:00:06]} c6 {[%emt 0:00:04]} 3. Nf3 {[%emt 0:00:03]} Nf6 {[%emt 0:00:05]} 4. Nc3 {[%emt 0:00:04]} a6 {[%emt 0:01:01]} 5. c5 {[%emt 0:01:02]} Nbd7 {[%emt 0:00:23]} 6. Bf4 {[%emt 0:01:03]} Nh5 {[%emt 0:00:13] [#]} 7. Bd2 $146 {[%emt 0:00:22]} ({Predecessor:} 7. e3 g6 8. Be2 Bg7 9. O-O O-O 10. Rc1 Nxf4 11. exf4 Nf6 12. Ne5 Bf5 13. b4 Qc7 14. Bd3 Bxd3 15. Qxd3 e6 16. g3 Nd7 {½-½ (73) Martirosyan,H (2633)-Swiercz,D (2656) Chess.com INT 2022}) 7... Nhf6 {[%emt 0:00:20]} 8. Bf4 {[%emt 0:00:27]} Nh5 {[%emt 0:00:05]} 9. Bd2 {[%emt 0:00:17] 9.g3 is the fancy move.} Nhf6 {[%emt 0:00:05][%cal Oe7e5] Prevents e4. D15: Slav Defence: 4 Nc3 a6 and gambit lines after 4 Nc3 dxc4.} 10. Bf4 {[%emt 0:01:50] Not much happened in this game.} 1/2-1/2